bitfinex/quotes_SOLUSD_20251218
["timestamp","ask_amount","ask_price","bid_price","bid_amount"]
[1766017738370,9.64,123.74,123.72,0.71]
[1766017739407,8.98,123.74,123.72,0.71]
[1766017739603,9.64,123.74,123.72,0.71]
[1766017740071,8.98,123.74,123.72,2.56069618]
[1766017740272,10.63767296,123.75,123.73,2.56069618]
[1766017740475,10.63767296,123.75,123.74,0.71]
[1766017740669,0.1,123.76,123.74,0.71]
[1766017740881,0.1,123.76,123.74,3.27069618]
[1766017741087,0.76,123.76,123.74,3.27069618]
[1766017741391,0.1,123.76,123.74,3.27069618]
[1766017742395,0.76,123.76,123.74,2.56069618]
[1766017743393,0.76,123.76,123.73,12.7906411]
[1766017743707,0.76,123.76,123.73,10.22994492]
[1766017743889,0.76,123.76,123.73,0.71]
[1766017744503,0.76,123.76,123.73,3.27069618]
[1766017744669,0.76,123.76,123.73,0.71]
[1766017745282,0.76,123.76,123.73,2.56069618]
[1766017745486,0.76,123.76,123.74,0.71]
[1766017746311,0.76,123.76,123.72,19.39767296]
[1766017746481,2.56069618,123.75,123.71,0.71]
[1766017746685,0.66,123.74,123.71,0.71]
[1766017747208,0.1,123.76,123.72,2.56069618]
[1766017747385,0.1,123.76,123.74,0.71]
[1766017747985,0.1,123.77,123.76,0.71]
[1766017748190,0.66,123.79,123.76,3.27069618]
[1766017748508,0.66,123.79,123.76,6.51048073]
[1766017751509,0.66,123.79,123.76,5.80048073]
[1766017751806,0.66,123.79,123.77,0.72]
[1766017753099,0.66,123.79,123.77,3.28069618]
[1766017753286,0.67,123.81,123.78,0.72]
[1766017753704,0.67,123.81,123.77,11.36166418]
[1766017757390,2.56069618,123.81,123.77,8.080968]
[1766017757701,2.56069618,123.81,123.76,2.56069618]
[1766017757702,0.67,123.8,123.76,13.92236036]
[1766017757903,0.67,123.8,123.76,14.64236036]
[1766017758309,0.67,123.8,123.77,0.72]
[1766017758507,11.10767296,123.8,123.77,0.72]
[1766017759090,10.43767296,123.8,123.77,0.72]
[1766017759297,0.67,123.79,123.77,0.72]
[1766017761196,0.67,123.8,123.77,2.56069618]
[1766017761397,0.67,123.8,123.78,0.72]
[1766017761923,0.67,123.8,123.77,14.64236036]
[1766017762295,0.67,123.8,123.77,3.28069618]
[1766017765021,0.67,123.79,123.77,3.28069618]
[1766017765356,0.67,123.79,123.77,2.56069618]
[1766017765491,0.67,123.79,123.77,3.99591706]
[1766017765690,0.67,123.79,123.76,13.71836914]
[1766017765691,0.67,123.79,123.76,3.99591706]
[1766017765915,0.67,123.79,123.76,4.71591706]
[1766017766116,0.67,123.79,123.72,48.31397807]
[1766017766117,0.67,123.79,123.75,15.15359002]
[1766017766296,0.67,123.79,123.75,3.99591706]
[1766017766496,0.67,123.79,123.76,0.72]
[1766017767197,0.17,123.79,123.76,4.71591706]
[1766017767402,0.17,123.79,123.77,3.99591706]
[1766017767602,0.17,123.79,123.76,4.71591706]
[1766017768727,10.43767296,123.8,123.77,4.71591706]
[1766017769429,0.34,123.79,123.77,4.71591706]
[1766017770421,0.34,123.79,123.75,10.43767296]
[1766017770595,0.34,123.79,123.76,4.71591706]
[1766017771798,10.77767296,123.79,123.74,10.43767296]
[1766017771999,0.67,123.78,123.74,10.43767296]
[1766017772196,11.10767296,123.79,123.76,3.99591706]
[1766017772695,0.67,123.79,123.76,3.99591706]
[1766017774522,0.67,123.79,123.75,4.71591706]
[1766017775102,0.67,123.79,123.75,3.99591706]
[1766017775300,0.67,123.79,123.76,0.72]
[1766017775498,0.67,123.77,123.74,4.71591706]
[1766017775830,0.67,123.77,123.74,0.72]
[1766017777221,0.67,123.77,123.73,3.99591706]
[1766017777417,0.67,123.77,123.73,4.71591706]
[1766017778631,0.67,123.77,123.74,3.99591706]
[1766017778816,0.67,123.77,123.74,4.71591706]
[1766017780626,11.10767296,123.78,123.75,0.72]
[1766017780929,11.10767296,123.78,123.76,0.72]
[1766017781116,10.43767296,123.78,123.75,4.70591706]
[1766017781430,0.68,123.77,123.75,4.70591706]
[1766017782319,0.68,123.77,123.72,4.70717735]
[1766017782522,0.68,123.77,123.73,4.70717735]
[1766017783130,0.68,123.77,123.74,0.71]
[1766017783733,0.68,123.77,123.74,4.70717735]
[1766017784640,0.68,123.77,123.75,0.71]
[1766017785131,0.68,123.77,123.74,4.70717735]
[1766017785330,0.68,123.77,123.75,0.71]
[1766017785636,10.43767296,123.76,123.75,0.71]
[1766017786822,10.43767296,123.76,123.75,4.70717735]
[1766017787842,10.43767296,123.76,123.75,0.71]
[1766017788734,0.68,123.78,123.75,4.70717735]
[1766017791623,11.11767296,123.79,123.76,4.70717735]
[1766017791826,10.43767296,123.79,123.77,0.71]
[1766017792044,11.11767296,123.79,123.77,0.71]
[1766017792338,11.11767296,123.79,123.76,4.70717735]
[1766017793039,11.11767296,123.79,123.73,8.08112942]
[1766017793040,10.43767296,123.79,123.78,0.71]
[1766017793535,10.43767296,123.79,123.77,4.70717735]
[1766017793837,10.43767296,123.79,123.77,0.71]
[1766017794043,10.43767296,123.79,123.77,4.70717735]
[1766017797523,10.43767296,123.79,123.77,3.99717735]
[1766017797845,11.11767296,123.79,123.77,4.70717735]
[1766017798030,11.11767296,123.79,123.77,0.71]
[1766017798526,10.43767296,123.79,123.77,0.71]
[1766017798943,11.11767296,123.79,123.77,0.71]
[1766017799846,11.11767296,123.79,123.77,4.70717735]
[1766017800344,0.68,123.79,123.77,4.70717735]
[1766017801334,0.68,123.79,123.77,0.71]
[1766017801535,0.68,123.8,123.77,0.71]
[1766017801935,0.68,123.8,123.76,0.71]
[1766017802540,10.43767296,123.78,123.76,0.71]
[1766017802843,10.43767296,123.78,123.73,0.71]
[1766017802844,0.68,123.77,123.73,0.71]
[1766017803768,10.43767296,123.76,123.73,0.71]
[1766017804053,0.68,123.75,123.73,0.71]
[1766017804227,0.68,123.75,123.72,4.70717735]
[1766017804840,0.68,123.75,123.73,0.71]
[1766017805026,0.68,123.75,123.72,4.70717735]
[1766017805237,11.11767296,123.76,123.73,4.70717735]
[1766017805433,11.11767296,123.76,123.74,0.71]
[1766017805640,10.43767296,123.76,123.74,0.71]
[1766017805949,10.43767296,123.76,123.74,4.70717735]
[1766017806344,10.43767296,123.76,123.75,0.71]
[1766017806738,10.43767296,123.76,123.74,4.70717735]
[1766017809133,10.43767296,123.76,123.75,3.99717735]
[1766017809430,8.86,123.77,123.75,4.70717735]
[1766017809646,0.68,123.78,123.76,0.71]
[1766017809958,9.54,123.79,123.76,0.71]
[1766017810160,9.54,123.79,123.76,4.70717735]
[1766017810377,9.54,123.79,123.76,3.99717735]
[1766017810539,8.86,123.79,123.77,0.69]
[1766017810858,9.58,123.79,123.76,3.99717735]
[1766017811036,9.58,123.79,123.76,4.68717735]
[1766017811237,20.01767296,123.79,123.76,4.68717735]
[1766017814565,19.29767296,123.79,123.76,0.69]
[1766017814858,0.72,123.78,123.74,4.68717735]
[1766017815360,19.29767296,123.79,123.74,0.69]
[1766017815361,10.43767296,123.76,123.74,0.69]
[1766017815950,10.43767296,123.77,123.71,0.69]
[1766017816138,0.72,123.75,123.71,4.68717735]
[1766017816343,0.72,123.75,123.72,0.69]
[1766017818556,11.15767296,123.75,123.72,4.68717735]
[1766017818761,0.72,123.75,123.72,4.68717735]
[1766017821459,19.29767296,123.76,123.73,3.99717735]
[1766017821646,19.29767296,123.76,123.74,0.69]
[1766017822151,20.01767296,123.76,123.74,0.69]
[1766017822350,20.01767296,123.76,123.73,3.99717735]
[1766017822551,20.01767296,123.76,123.73,4.68717735]
[1766017823868,20.01767296,123.76,123.74,0.69]
[1766017824243,10.43767296,123.76,123.74,3.99717735]
[1766017824548,10.43767296,123.76,123.75,0.69]
[1766017824954,10.43767296,123.76,123.74,3.99717735]
[1766017825271,10.43767296,123.76,123.74,4.68717735]
[1766017825444,10.43767296,123.76,123.75,0.69]
[1766017826260,10.43767296,123.76,123.74,4.68717735]
[1766017826660,10.43767296,123.76,123.74,0.69]
[1766017828675,11.15767296,123.76,123.74,0.69]
[1766017832355,11.15767296,123.76,123.7,16.89388256]
[1766017832356,0.72,123.75,123.69,19.24224132]
[1766017832561,0.72,123.75,123.72,0.69]
[1766017833661,11.15767296,123.76,123.73,0.69]
[1766017834059,11.15767296,123.76,123.73,3.24872645]
[1766017835073,11.15767296,123.76,123.74,0.69]
[1766017835074,10.43767296,123.76,123.74,0.69]
[1766017835285,11.15767296,123.76,123.74,0.69]
[1766017835483,10.43767296,123.76,123.74,0.69]
[1766017835778,11.15767296,123.76,123.74,0.69]
[1766017840278,11.15767296,123.76,123.7,8.80994492]
[1766017840481,11.15767296,123.76,123.73,0.69]
[1766017848310,10.43767296,123.76,123.73,0.69]
[1766017848466,0.67,123.75,123.73,0.69]
[1766017850906,11.10767296,123.76,123.73,0.69]
[1766017853707,10.43767296,123.76,123.73,0.69]
[1766017853891,0.67,123.75,123.73,0.69]
[1766017855192,11.10767296,123.76,123.73,0.69]
[1766017859611,10.43767296,123.76,123.73,0.69]
[1766017859907,0.67,123.75,123.73,0.69]
[1766017860315,11.10767296,123.76,123.73,0.69]
[1766017860492,19.96767296,123.78,123.74,0.67]
[1766017860693,0.67,123.77,123.74,0.67]
[1766017864214,10.43767296,123.76,123.75,0.67]
[1766017864382,9.71767296,123.76,123.75,0.67]
[1766017864584,8.86,123.78,123.75,0.67]
[1766017864789,0.67,123.77,123.75,0.67]
[1766017865083,8.86,123.78,123.75,0.67]
[1766017865084,9.53,123.78,123.75,0.67]
[1766017866606,19.96767296,123.78,123.75,0.67]
[1766017866813,10.43767296,123.76,123.75,0.67]
[1766017867210,9.53,123.78,123.75,0.67]
[1766017867388,10.43767296,123.76,123.75,0.67]
[1766017874992,0.68,123.77,123.74,0.7]
[1766017880521,0.68,123.74,123.71,0.7]
[1766017881534,22.53685742,123.75,123.71,0.7]
[1766017882030,2.55918446,123.74,123.69,0.7]
[1766017882217,3.23918446,123.74,123.69,2.55918446]
[1766017882417,0.68,123.74,123.7,0.7]
[1766017884921,0.68,123.74,123.69,3.25918446]
[1766017885123,0.68,123.73,123.68,2.55918446]
[1766017886131,0.68,123.73,123.69,0.7]
[1766017886424,0.68,123.73,123.69,3.25918446]
[1766017888930,0.68,123.73,123.69,0.7]
[1766017890437,0.68,123.72,123.69,0.7]
[1766017892428,0.68,123.72,123.68,0.7]
[1766017892814,0.68,123.7,123.66,0.7]
[1766017893003,0.68,123.7,123.67,0.7]
[1766017895020,0.68,123.7,123.67,4.70110709]
[1766017895938,0.68,123.7,123.67,0.7]
[1766017896141,0.68,123.7,123.67,4.70110709]
[1766017896330,0.68,123.71,123.68,4.70110709]
[1766017897944,0.68,123.71,123.68,4.00110709]
[1766017899614,0.68,123.71,123.68,4.70110709]
[1766017900225,10.43767296,123.7,123.68,4.70110709]
[1766017900427,11.11767296,123.7,123.68,4.70110709]
[1766017902337,11.14767296,123.71,123.69,4.00110709]
[1766017902534,10.43767296,123.71,123.69,4.66110709]
[1766017902736,11.14767296,123.71,123.69,4.66110709]
[1766017903266,10.43767296,123.71,123.69,4.00110709]
[1766017903553,16.94113545,123.75,123.7,4.00110709]
[1766017903554,0.71,123.74,123.7,4.00110709]
[1766017905042,0.71,123.74,123.71,0.66]
[1766017905238,0.71,123.74,123.7,4.66110709]
[1766017905424,0.71,123.73,123.7,4.66110709]
[1766017905619,0.71,123.73,123.69,4.66110709]
[1766017906442,10.43767296,123.72,123.69,4.00110709]
[1766017906649,0.71,123.71,123.69,4.66110709]
[1766017906947,11.14767296,123.72,123.69,4.66110709]
[1766017907630,11.14767296,123.72,123.7,4.00110709]
[1766017909358,11.14767296,123.72,123.69,4.66110709]
[1766017910353,0.71,123.7,123.68,4.00110709]
[1766017910949,0.71,123.7,123.67,16.08326637]
[1766017911153,0.71,123.7,123.68,0.66]
[1766017911542,10.43767296,123.71,123.68,4.66110709]
[1766017911933,11.14767296,123.71,123.68,4.66110709]
[1766017912541,11.14767296,123.71,123.69,4.00110709]
[1766017913149,10.43767296,123.71,123.7,0.66]
[1766017913343,0.71,123.72,123.7,4.66110709]
[1766017913750,0.71,123.72,123.7,4.00110709]
[1766017914761,0.71,123.72,123.7,4.00070625]
[1766017915258,0.71,123.72,123.69,4.66070625]
[1766017915638,0.71,123.72,123.69,0.66]
[1766017920760,0.71,123.72,123.66,0.66]
[1766017920965,0.71,123.72,123.67,4.66070625]
[1766017921137,0.71,123.71,123.67,4.00070625]
[1766017921757,0.71,123.71,123.67,4.66070625]
[1766017921960,0.71,123.71,123.65,10.43767296]
[1766017922260,0.71,123.71,123.67,4.00070625]
[1766017922556,0.71,123.71,123.67,4.66070625]
[1766017923547,0.71,123.69,123.67,4.66070625]
[1766017923746,0.71,123.69,123.65,10.43767296]
[1766017923949,0.71,123.68,123.65,4.66070625]
[1766017924151,0.71,123.68,123.64,16.28422735]
[1766017924461,0.71,123.67,123.64,0.2]
[1766017924858,0.71,123.66,123.64,0.2]
[1766017925864,0.71,123.65,123.64,0.2]
[1766017926161,9.59,123.66,123.64,0.86]
[1766017926361,8.88,123.66,123.64,0.86]
[1766017926566,11.14767296,123.68,123.65,4.66070625]
[1766017927466,0.71,123.67,123.65,4.66070625]
[1766017927764,0.71,123.67,123.65,0.66]
[1766017927969,0.71,123.67,123.65,4.66070625]
[1766017928669,0.71,123.67,123.65,0.66]
[1766017929057,11.14767296,123.68,123.65,0.66]
[1766017929252,4.00070625,123.7,123.67,0.66]
[1766017929253,0.71,123.7,123.67,0.66]
[1766017929453,9.59,123.71,123.68,0.66]
[1766017929658,20.02767296,123.71,123.68,0.66]
[1766017929961,0.71,123.73,123.7,0.66]
[1766017930156,0.66,123.75,123.73,0.69]
[1766017930355,0.66,123.76,123.73,0.69]
[1766017931567,9.58,123.77,123.74,0.72]
[1766017931876,20.01767296,123.77,123.74,4.72070625]
[1766017932870,4.00070625,123.76,123.71,4.72070625]
[1766017933068,0.7,123.75,123.71,4.72070625]
[1766017933258,0.7,123.74,123.71,0.72]
[1766017934759,0.7,123.74,123.71,4.72070625]
[1766017935473,0.7,123.74,123.69,4.72070625]
[1766017936570,0.7,123.73,123.69,4.72070625]
[1766017937477,0.7,123.73,123.7,4.00070625]
[1766017941284,0.7,123.73,123.7,4.72070625]
[1766017943272,0.7,123.73,123.71,4.00070625]
[1766017943980,0.7,123.73,123.7,4.72070625]
[1766017947177,0.7,123.75,123.71,0.72]
[1766017947570,0.7,123.75,123.7,4.72070625]
[1766017947770,0.7,123.75,123.71,0.72]
[1766017949186,0.7,123.75,123.71,4.72070625]
[1766017949378,0.7,123.75,123.72,0.72]
[1766017949970,0.7,123.75,123.72,3.27963327]
[1766017950882,0.7,123.75,123.72,0.72]
[1766017954785,3.25963327,123.76,123.72,0.72]
[1766017954978,0.7,123.75,123.71,3.27963327]
[1766017955180,0.7,123.75,123.72,0.72]
[1766017955781,11.13767296,123.75,123.72,0.72]
[1766017956086,0.7,123.74,123.72,0.72]
[1766017957182,11.13767296,123.75,123.72,3.27963327]
[1766017957387,0.7,123.75,123.72,0.72]
[1766017958383,10.43767296,123.76,123.72,3.27963327]
[1766017958587,2.55963327,123.78,123.73,0.72]
[1766017958773,11.13767296,123.78,123.75,0.72]
[1766017958970,10.43767296,123.78,123.75,0.72]
[1766017959171,0.7,123.77,123.75,0.72]
[1766017959678,11.13767296,123.78,123.75,0.72]
[1766017960269,0.7,123.77,123.74,0.72]
[1766017965524,0.7,123.77,123.74,3.27963327]
[1766017965900,0.7,123.77,123.74,2.55963327]
[1766017966124,0.7,123.77,123.75,0.68]
[1766017967302,0.7,123.77,123.72,10.43767296]
[1766017967495,0.7,123.77,123.74,0.68]
[1766017971091,0.7,123.77,123.73,2.55963327]
[1766017971298,0.7,123.77,123.73,0.68]
[1766017973105,0.72,123.77,123.73,0.68]
[1766017974190,0.72,123.77,123.73,3.23963327]
[1766017975105,0.72,123.77,123.73,2.55963327]
[1766017975299,0.72,123.77,123.74,0.68]
[1766017977609,0.72,123.77,123.71,0.68]
[1766017977815,0.72,123.77,123.73,0.68]
[1766017978312,0.72,123.77,123.73,2.55963327]
[1766017978517,0.72,123.77,123.74,0.68]
[1766017979692,11.41963327,123.79,123.75,0.68]
[1766017979693,0.72,123.78,123.75,0.68]
[1766017979906,0.72,123.78,123.75,3.23963327]
[1766017980113,10.43767296,123.77,123.76,0.68]
[1766017981812,11.15767296,123.77,123.75,0.68]
[1766017981995,10.43767296,123.77,123.74,0.68]
[1766017982196,0.72,123.76,123.74,0.68]
[1766017984734,11.15767296,123.77,123.74,0.68]
[1766017985514,29.00104051,123.82,123.73,2.5592514]
[1766017985515,2.5592514,123.82,123.76,3.2392514]
[1766017985726,0.72,123.81,123.77,0.68]
[1766017986820,0.72,123.81,123.77,3.2392514]
[1766017988935,8.86,123.82,123.78,0.68]
[1766017989450,0.72,123.81,123.77,3.2392514]
[1766017989813,0.72,123.81,123.78,2.5592514]
[1766017990328,0.72,123.81,123.78,3.2492514]
[1766017990516,0.72,123.81,123.79,0.69]
[1766017990724,0.68,123.82,123.8,0.69]
[1766017991319,0.68,123.82,123.79,3.2692514]
[1766017992834,0.68,123.82,123.79,0.71]
[1766017993040,0.68,123.82,123.79,3.2692514]
[1766017993218,0.68,123.82,123.79,0.71]
[1766017994637,0.68,123.82,123.78,3.2692514]
[1766017996816,0.68,123.82,123.78,0.71]
[1766017997624,3.2392514,123.82,123.78,0.71]
[1766017997841,0.72,123.81,123.78,0.71]
[1766018000346,0.72,123.81,123.76,3.2692514]
[1766018000846,0.72,123.81,123.77,0.71]
[1766018004243,3.2792514,123.82,123.77,3.2692514]
[1766018004425,0.72,123.81,123.77,3.2692514]
[1766018004626,3.2792514,123.81,123.77,0.71]
[1766018004946,0.72,123.8,123.77,0.71]
[1766018005144,0.72,123.78,123.75,0.71]
[1766018005722,3.2792514,123.79,123.75,0.71]
[1766018006045,0.72,123.79,123.75,0.71]
[1766018007555,22.57692436,123.8,123.75,0.71]
[1766018007855,21.85692436,123.8,123.75,0.71]
[1766018008148,22.57692436,123.8,123.75,0.71]
[1766018009351,0.72,123.78,123.75,0.71]
[1766018010255,0.72,123.78,123.74,4.70782127]
[1766018011143,0.72,123.78,123.73,3.99782127]
[1766018011345,10.43767296,123.77,123.74,0.71]
[1766018011550,0.72,123.76,123.74,0.71]
[1766018012549,11.15767296,123.77,123.74,0.71]
[1766018012732,0.72,123.77,123.74,0.71]
[1766018012936,11.15767296,123.78,123.75,0.71]
[1766018013348,10.43767296,123.78,123.75,0.71]
[1766018013544,0.72,123.77,123.75,0.71]
[1766018014837,0.72,123.77,123.74,3.99782127]
[1766018015042,0.72,123.77,123.74,0.71]
[1766018022157,11.11767296,123.78,123.74,3.99782127]
[1766018022355,11.11767296,123.78,123.75,0.69]
[1766018022962,0.68,123.77,123.75,0.69]
[1766018024361,10.43767296,123.78,123.75,0.69]
[1766018024548,0.68,123.77,123.75,0.69]
[1766018025065,9.54,123.79,123.76,0.69]
[1766018025565,0.68,123.78,123.76,0.69]
[1766018027064,0.68,123.78,123.75,0.69]
[1766018031364,9.54,123.79,123.75,0.69]
[1766018031564,0.68,123.78,123.75,0.69]
[1766018032458,9.54,123.79,123.75,0.69]
[1766018034654,0.68,123.78,123.74,0.69]
[1766018037274,0.68,123.78,123.74,4.68782127]
[1766018037474,0.68,123.78,123.74,3.99782127]
[1766018037773,0.68,123.78,123.76,0.69]
[1766018041757,0.68,123.78,123.74,0.69]
[1766018041972,0.68,123.78,123.75,0.69]
[1766018042167,8.86,123.79,123.75,0.69]
[1766018042353,0.68,123.78,123.75,0.69]
[1766018043185,8.86,123.79,123.75,0.69]
[1766018043783,9.54,123.79,123.75,0.69]
[1766018044502,4.67782127,123.77,123.73,0.69]
[1766018044782,0.68,123.76,123.73,0.69]
[1766018044979,0.68,123.76,123.72,4.68782127]
[1766018045278,0.68,123.76,123.73,0.69]
[1766018046458,0.68,123.76,123.73,4.68782127]
[1766018046971,0.68,123.78,123.74,0.69]
[1766018047591,0.68,123.78,123.75,0.69]
[1766018047791,0.68,123.78,123.75,4.68782127]
[1766018048290,0.68,123.78,123.74,3.99782127]
[1766018048480,0.68,123.78,123.75,0.69]
[1766018048681,9.54,123.79,123.75,0.69]
[1766018048881,8.86,123.79,123.76,3.99782127]
[1766018049068,0.68,123.82,123.78,4.68782127]
[1766018049260,10.43767296,123.82,123.78,4.68782127]
[1766018049470,0.68,123.81,123.78,0.69]
[1766018050589,0.68,123.81,123.75,16.10147465]
[1766018050770,0.68,123.81,123.74,8.08120044]
[1766018050771,0.68,123.81,123.77,3.99782127]
[1766018050972,0.67,123.82,123.78,0.69]
[1766018051171,4.66587757,123.82,123.77,4.68587757]
[1766018051494,0.67,123.81,123.77,4.68587757]
[1766018051895,0.67,123.81,123.78,0.69]
[1766018052088,3.99587757,123.82,123.78,0.69]
[1766018052291,0.67,123.81,123.78,0.69]
[1766018053084,0.67,123.81,123.77,4.68587757]
[1766018053899,0.67,123.81,123.78,0.69]
[1766018054282,0.67,123.81,123.77,4.68587757]
[1766018056496,0.67,123.81,123.78,0.69]
[1766018056882,0.67,123.82,123.79,0.69]
[1766018057808,8.86,123.83,123.8,3.99587757]
[1766018058101,11.30767296,123.85,123.82,0.69]
[1766018058273,0.67,123.84,123.82,0.69]
[1766018058474,0.67,123.84,123.81,4.68587757]
[1766018059400,0.67,123.84,123.8,0.69]
[1766018059603,0.67,123.83,123.8,0.69]
[1766018059785,0.67,123.83,123.79,4.68587757]
[1766018061502,0.67,123.83,123.8,0.69]
[1766018064803,0.67,123.83,123.78,10.63767296]
[1766018064804,11.10767296,123.83,123.78,15.32355053]
[1766018065007,0.67,123.81,123.77,3.99587757]
[1766018065180,0.67,123.81,123.78,0.69]
[1766018067815,0.67,123.81,123.76,0.69]
[1766018068019,0.67,123.81,123.77,0.69]
[1766018068524,0.67,123.81,123.77,4.68587757]
[1766018071114,0.67,123.81,123.76,4.68587757]
[1766018071414,0.67,123.81,123.76,3.24759162]
[1766018071605,0.67,123.81,123.77,0.69]
[1766018071986,0.67,123.81,123.77,3.24759162]
[1766018072706,0.67,123.81,123.78,3.24759162]
[1766018078717,0.67,123.84,123.8,2.55759162]
[1766018079024,0.67,123.84,123.81,3.24759162]
[1766018086400,0.67,123.84,123.81,0.69]
[1766018087626,0.72,123.82,123.78,0.69]
[1766018087808,0.72,123.81,123.78,0.69]
[1766018089026,0.72,123.81,123.78,9.55]
[1766018090438,18.7120535,123.85,123.8,2.55759162]
[1766018090439,0.72,123.84,123.8,2.55759162]
[1766018090603,10.43767296,123.83,123.81,0.69]
[1766018090932,11.15767296,123.83,123.8,0.69]
[1766018092010,11.15767296,123.83,123.8,11.84767296]
[1766018092214,0.2,123.85,123.81,2.55759162]
[1766018092411,0.92,123.85,123.82,0.69]
[1766018093229,0.92,123.85,123.82,17.57241233]
[1766018093536,0.92,123.85,123.82,0.69]
[1766018094912,0.2,123.85,123.82,0.69]
[1766018095112,0.2,123.85,123.82,20.13000395]
[1766018095313,0.2,123.85,123.83,0.69]
[1766018095527,0.92,123.85,123.83,0.69]
[1766018095728,0.92,123.85,123.82,20.82000395]
[1766018096529,0.92,123.85,123.83,0.69]
[1766018098934,0.92,123.85,123.82,20.13000395]
[1766018099112,0.92,123.85,123.82,20.82000395]
[1766018099935,0.92,123.85,123.83,0.69]
[1766018100717,0.72,123.84,123.81,0.69]
[1766018100912,0.72,123.84,123.8,13.97518324]
[1766018101118,0.72,123.84,123.81,0.69]
[1766018105642,0.72,123.84,123.8,14.66518324]
[1766018105941,0.72,123.84,123.81,0.69]
[1766018107439,0.72,123.83,123.8,11.41759162]
[1766018107822,0.22,123.83,123.8,11.41759162]
[1766018108028,0.22,123.83,123.79,0.69]
[1766018108223,0.22,123.83,123.79,8.27433329]
[1766018108429,0.22,123.83,123.8,0.69]
[1766018123183,2.55653539,123.81,123.79,8.27433329]
[1766018123341,2.55653539,123.8,123.76,0.67]
[1766018123649,0.66,123.78,123.76,0.67]
[1766018125259,0.66,123.78,123.73,0.67]
[1766018125468,0.66,123.78,123.74,3.22653539]
[1766018125641,0.66,123.78,123.75,0.67]
[1766018127340,0.66,123.77,123.74,0.67]
[1766018131174,0.66,123.77,123.75,0.67]
[1766018138400,4.6580647,123.77,123.72,13.5280647]
[1766018138676,4.6580647,123.76,123.72,0.67]
[1766018139049,3.9980647,123.76,123.72,0.67]
[1766018139252,4.6580647,123.76,123.72,0.67]
[1766018139477,0.66,123.75,123.72,0.67]
[1766018139779,4.6580647,123.75,123.72,0.67]
[1766018141759,0.67,123.74,123.71,0.67]
[1766018142177,11.10767296,123.74,123.71,0.67]
[1766018142377,8.07977569,123.77,123.71,0.67]
[1766018142566,0.67,123.74,123.71,0.67]
[1766018145280,0.67,123.76,123.73,3.9980647]
[1766018145481,10.43767296,123.77,123.74,0.67]
[1766018145482,11.10767296,123.77,123.74,0.67]
[1766018145785,0.67,123.77,123.75,0.67]
[1766018146572,0.67,123.77,123.74,4.6680647]
[1766018146763,0.67,123.77,123.74,0.67]
[1766018152985,0.67,123.77,123.72,4.6680647]
[1766018153190,0.67,123.77,123.73,0.67]
[1766018154686,0.67,123.77,123.74,0.67]
[1766018159093,0.67,123.77,123.7,12.91606715]
[1766018159267,0.67,123.77,123.73,0.67]
[1766018159590,0.67,123.76,123.73,0.67]
[1766018160894,0.67,123.76,123.72,0.67]
[1766018161190,0.67,123.74,123.71,0.67]